Cogmind - Beta 16 @@@ ROGUE MODE // 2025.10.25 @ 22:38:40 Player: Memoir Result: Destroyed self with Mini Grenade Launcher Performance ------------- Evolutions (1) 500 Regions Visited (2) 400 Robots Destroyed (27) 135 Value Destroyed (753) 753 Prototype IDs (1) 20 Alien Tech Used (0) 0 Bonus (0) 0 TOTAL SCORE: 1808 Bonus ------- None Cogmind --------- Core Integrity 0/400 Matter 290/300 Energy 274/280 System Corruption 0% Temperature Cool (0) Movement Core (1500) Ox29 Location -9/Materials Parts ------- > --- POWER (1) -------- Cooled Ion Engine > --- PROPULSION (3) --- (None) > --- UTILITY (3) ------ Huge Storage Unit > --- WEAPON (2) ------- Mini Grenade Launcher > --- INVENTORY (25) --- Ion Engine Improved Ion Engine Blade Saw Peak State ------------ > --- POWER ------------ Improved Ion Engine > --- PROPULSION ------- Cesium-ion Thruster Cesium-ion Thruster Cesium-ion Thruster > --- UTILITY ---------- Huge Storage Unit Light Armor Plating > --- WEAPON ----------- Shock Rifle Shock Rifle > --- INVENTORY -------- Ion Engine Blade Saw [Rating: 19] Favorites ----------- Power Ion Engine Engine Ion Engine Propulsion Aluminum Leg Treads Light Treads Leg Aluminum Leg Flight Unit Cesium-ion Thruster Utility Huge Storage Unit Device Sensor Array Storage Huge Storage Unit Processor Targeting Computer Protection Light Armor Plating Weapon Assault Rifle Energy Gun Shock Rifle Ballistic Gun Assault Rifle Launcher Mini Grenade Launcher Special Weapon Plasma Cutter Build | -11 -10 -9 ------- Run | Yrd Mat Mat Slots Evolved 2 | . . 2 Power . | . . . Propulsion 1 | . . 1 Utility 1 | . . 1 Weapon . | . . . Parts Attached 25 | 6 6 13 Power 4 | 1 1 2 Engine 4 | 1 1 2 Core . | . . . Reactor . | . . . Propulsion 9 | 2 2 5 Treads 3 | 2 . 1 Leg 2 | . 2 . Wheel . | . . . Hover . | . . . Flight 4 | . . 4 Utility 5 | 1 3 1 Device 1 | . 1 . Storage 2 | 1 1 . Processor 1 | . 1 . Hackware . | . . . Protection 1 | . . 1 Artifact . | . . . Weapon 7 | 2 . 5 Energy Gun 3 | . . 3 Energy Cannon . | . . . Ballistic Gun 2 | 2 . . Ballistic Cannon . | . . . Launcher 1 | . . 1 Special Weapon 1 | . . 1 Impact Weapon . | . . . Slashing Weapon . | . . . Piercing Weapon . | . . . Special Melee Weapon . | . . . Unidentified Prototypes 1 | . . 1 Parts Lost 13 | . . 13 Power 1 | . . 1 Propulsion 6 | . . 6 Utility 2 | . . 2 Weapon 4 | . . 4 Highest Loss Streak 7 | . . 7 To Critical Strikes . | . . . Average Backups 1 | . . 1 Power . | . . . Propulsion . | . . . Utility . | . . . Weapon . | . . . Tool/Special . | . . . Unused Backups 5 | . 1 4 Power 1 | . . 1 Propulsion . | . . . Utility 3 | . 1 2 Weapon 1 | . . 1 Tool/Special . | . . . Average Slot Usage (%) 78 | . 92 71 Engine 10 | . 14 9 Treads 3 | . 8 . Leg 12 | . 20 8 Flight 9 | . . 14 Device 3 | . 2 4 Storage 12 | . 14 11 Processor 1 | . 4 . Protection 2 | . . 3 Energy Gun 6 | . . 10 Ballistic Gun 12 | . 28 5 Special Weapon 2 | . . 3 Peak Build Rating 19 | 6 7 19 Average Rating 9 | 4 6 11 On Entrance 4 | . 6 7 Avg Prop Armor Cover (%) 13 | . . 13 Naked Turns . | . . . Heaviest Build 97 | 14 90 97 Greatest Support 40 | 40 40 20 Greatest Overweight (x) 29 | . 4 29 Average Overweight (x) 4 | . 2 6 Largest Inventory Capacity 25 | 8 25 25 Average Capacity 23 | 7 21 25 Most Carried 5 | 5 3 5 Average Carried 1 | . . 1 Final Capacity 25 | 8 25 25 Final Carried 3 | . . 3 Class Distribution -------------------- 97% | Mutant Dominant Class ---------------- Mutant | -10/Materials Mutant | -9/Materials Resources | -11 -10 -9 ----------- Run | Yrd Mat Mat Matter Collected 661 | 254 230 177 Remotely . | . . . Salvage Created 896 | . 286 610 Parts 55 | . 17 38 Haulers Intercepted 1 | . . 1 Recyclers Shooed . | . . . Parts Field Recycled . | . . . Retrieved Matter . | . . . Parts Self-Destructed . | . . . Prevented . | . . . Parts Restored . | . . . Kills | -11 -10 -9 ------- Run | Yrd Mat Mat Combat Hostiles Destroyed 24 | . 6 18 Guns 16 | . 6 10 Cannons 1 | . . 1 AOE 7 | . . 7 Classes Destroyed 6 | . 2 4 Worker 1 | . . 1 Hauler 1 | . . 1 Watcher 1 | . 1 . Swarmer 8 | . . 8 Grunt 12 | . 6 6 Sentry 4 | . . 4 Best Kill Streak 4 | . 4 4 Combat Bots Only 4 | . 4 4 Max Kills in Single Turn 4 | . 1 4 Gunslinging . | . . . Exploded 4 | . . 4 Melee . | . . . Uniques/NPCs Destroyed . | . . . Combat | -11 -10 -9 -------- Run | Yrd Mat Mat Hostile Shots Fired 200 | . 55 145 Missed 63 | . 18 45 Hits 137 | . 37 100 Projectile 137 | . 37 100 Critical Strikes 4 | . . 4 Damage Taken 1898 | . 505 1393 Core 513 | . 113 400 Absorbed by Shields . | . . . Core Remaining (%) 77 | 100 54 . Volleys Fired 84 | . 29 55 Largest 2 | . 2 2 Hottest 100 | . 40 100 Shots Fired 148 | . 58 90 Gun 133 | . 58 75 Cannon . | . . . Launcher 1 | . . 1 Special 14 | . . 14 Kinetic 82 | . 58 24 Thermal 14 | . . 14 Explosive 1 | . . 1 Electromagnetic 51 | . . 51 Robot Hit Streak 22 | . 5 22 Robot Miss Streak 5 | . 5 5 Penetration Max . | . . . Secondary Targets 2 | . 2 . Max Gunslinging Chain 1 | . 1 . Shots Hit Robots 82 | . 31 51 Core Hits 38 | . 14 24 Critical Kills . | . . . Critical Parts Destroyed 1 | . . 1 Critical Strikes 1 | . . 1 Destroy 1 | . . 1 Melee Attacks . | . . . Impact . | . . . Slashing . | . . . Piercing . | . . . Sneak Attacks . | . . . Combat Hostiles . | . . . Follow-up Attacks . | . . . Damage Inflicted 1723 | . 388 1335 Guns 1062 | . 388 674 Cannons . | . . . Explosions 595 | . . 595 Melee . | . . . Ramming . | . . . Kinetic 573 | . 388 185 Thermal 274 | . . 274 Explosive 387 | . . 387 Electromagnetic 489 | . . 489 Impact . | . . . Slashing . | . . . Piercing . | . . . Highest Corruption . | . . . Average Corruption . | . . . Corruption Purged . | . . . Corruption Blocked . | . . . Overload Shots . | . . . Overflow Damage 110 | . . 110 Projectiles . | . . . Explosions 110 | . . 110 Melee . | . . . Knockbacks . | . . . Impact . | . . . Kinetic . | . . . Secondary . | . . . Self-Inflicted Damage 153 | . . 153 Shots 4 | . . 4 Rammed . | . . . Targets Rammed . | . . . Kicked . | . . . Crushed . | . . . Highest Temperature 310 | . 22 310 Average Temperature 84 | . 9 100 Received Heat Transfer 735 | . 282 453 Siege Activations . | . . . Martial Activations . | . . . Shielding Activations . | . . . Robots Disrupted . | . . . Combat Hostiles . | . . . Robots Corrupted . | . . . Combat Hostiles . | . . . Parts Fried 1 | . . 1 Impact Corruptions . | . . . Robots Melted . | . . . Combat Hostiles . | . . . Parts Melted 1 | . . 1 Heat Transferred 472 | . . 472 Parts Sabotaged . | . . . Parts Stolen . | . . . Parts Stripped . | . . . Power Chain Reactions 3 | . . 3 Alert | -11 -10 -9 ------- Run | Yrd Mat Mat Maximum Alert Level . | . . . Low Security (%) 100 | 100 100 100 Level 1 . | . . . Level 2 . | . . . Level 3 . | . . . Level 4 . | . . . Level 5 . | . . . High Security . | . . . Max Security . | . . . Peak Influence 128 | . 91 128 Initial . | . . . Average 28 | . 25 31 Influence Increases 720 | . 162 558 Destroy 0b10 Robot/C 480 | . 120 360 Destroy 0b10 Robot/NC 15 | . 5 10 Destroy Leader 114 | . 32 82 Successful Hack 4 | . 4 . Disable Machine 60 | . . 60 Destroy Structure 32 | . 1 31 Lose Combat Pursuer 15 | . . 15 Influence Decreases 503 | . 162 341 Time Decay 439 | . 162 277 Lost Part 64 | . . 64 Squads Dispatched 4 | . 1 3 Investigation 1 | . . 1 Extermination . | . . . Reinforcement 3 | . 1 2 Assault . | . . . Garrison . | . . . Intercept . | . . . Searches Triggered . | . . . Construction Impeded 1 | . . 1 Haulers Reinforced . | . . . Active Scanning Responses . | . . . Cargo Convoy Interrupts . | . . . Stealth | -11 -10 -9 --------- Run | Yrd Mat Mat Distress Signals 6 | . 2 4 Communications Jammed . | . . . Distress Signals . | . . . Times Spotted 43 | . 10 33 Peak Tracking Total 5 | . 5 5 Tactical Retreats 1 | . . 1 Traps | -11 -10 -9 ------- Run | Yrd Mat Mat Traps Triggered 1 | . . 1 Indirectly . | . . . Trap Hack Attempts . | . . . Triggered . | . . . Disarmed . | . . . Reprogrammed . | . . . Reused . | . . . Traps Extracted . | . . . Installed . | . . . Triggered . | . . . Machines | -11 -10 -9 ---------- Run | Yrd Mat Mat Machines Disabled 4 | . . 4 Max in Single Turn 3 | . . 3 Machines Repaired . | . . . Machines Dismantled 1 | . . 1 Machines Sabotaged . | . . . Overloaded Fab Kills . | . . . Hacking | -11 -10 -9 --------- Run | Yrd Mat Mat Machines Accessed 5 | . 5 . Terminals 3 | . 3 . Fabricators . | . . . Repair Stations . | . . . Recycling Units 2 | . 2 . Scanalyzers . | . . . Garrison Access . | . . . Total Hacks 14 | . 14 . Successful 6 | . 6 . Failed 8 | . 8 . Catastrophic 1 | . 1 . Database Lockouts . | . . . Manual . | . . . Terminals 6 | . 6 . Fabricators . | . . . Repair Stations . | . . . Recycling Units 8 | . 8 . Scanalyzers . | . . . Garrison Access . | . . . Terminal Hacks 3 | . 3 . Record 1 | . 1 . Dispatch Records 1 | . 1 . Zone Layout 1 | . 1 . Fabricator Hacks . | . . . Repair Station Hacks . | . . . Recycling Unit Hacks 3 | . 3 . Retrieve Matter 1 | . 1 . Retrieve Components 2 | . 2 . Scanalyzer . | . . . Garrison Access Hacks . | . . . Unauthorized Hacks . | . . . Terminals . | . . . Fabricators . | . . . Repair Stations . | . . . Recycling Units . | . . . Scanalyzers . | . . . Garrison Access . | . . . Data Cores Recovered . | . . . Used . | . . . Hacking Detections 4 | . 4 . Full Trace Events 3 | . 3 . Feedback Events . | . . . Feedback Blocked . | . . . Robot Schematics Acquired . | . . . Robots Built . | . . . Authchips . | . . . Time . | . . . Total Robot Build Rating . | . . . Part Schematics Acquired . | . . . Parts Built . | . . . Authchips . | . . . Time . | . . . Total Part Build Rating . | . . . Part Studies Acquired . | . . . Parts Repaired . | . . . Time . | . . . Parts Recycled . | . . . Recycled Matter . | . . . Retrieved Matter . | . . . Retrieved Components 2 | . 2 . Parts Scanalyzed . | . . . Part Schematics Acquired . | . . . Parts Damaged . | . . . Bothacking | -11 -10 -9 ------------ Run | Yrd Mat Mat Used RIF Installer . | . . . Robots Hacked . | . . . Non-combat . | . . . Combat . | . . . Robot Hacks Applied . | . . . Relay Couplers Released . | . . . Fabnet Peak Effective % . | . . . Robots Rewired . | . . . Allies Hacked . | . . . Hacks Repelled . | . . . Allies | -11 -10 -9 -------- Run | Yrd Mat Mat Total Allies . | . . . Largest Group . | . . . Highest-Rated Group . | . . . Highest-Rated Ally . | . . . Total Orders . | . . . Ally Attacks . | . . . Total Damage . | . . . Kills . | . . . Allies Corrupted . | . . . Allies Melted . | . . . Intel | -11 -10 -9 ------- Run | Yrd Mat Mat Active Infowar (turns) 511 | . 73 438 Sensors 511 | . 73 438 Robot Analysis Total . | . . . Derelict Logs Recovered . | . . . Drone Launches . | . . . Drone Recoveries . | . . . Exploration | -11 -10 -9 ------------- Run | Yrd Mat Mat Turns Passed 1711 | 56 544 1111 Spaces Moved 333 | 37 127 169 Core 20 | 12 . 8 Treads 69 | 25 38 6 Legs 162 | . 89 73 Wheels . | . . . Hover . | . . . Flight 82 | . . 82 Fastest Speed 50 | 50 160 400 Average Speed 413 | 124 342 530 Slowest Speed 1500 | 160 400 1500 Overloaded Moves . | . . . Propulsion Burnouts . | . . . Robots Hopped . | . . . Potential Cave-ins . | . . . Cave-ins Triggered . | . . . Exploration Rate (%) 15 | 3 25 19 Regions Visited 2 Branch Regions . Pre-discovered Areas . | . . . Known Exits Taken . | . . . Unknown Exits Taken 2 | 1 1 . Scrap Searched . | . . . Spaces Dug . | . . . Terrain Destroyed 32 | . . 32 Melee . | . . . Projectile . | . . . AOE 32 | . . 32 Terrain Rammed . | . . . Walls Destroyed . | . . . Machines Disabled . | . . . Actions | -11 -10 -9 --------- Run | Yrd Mat Mat Total 503 | 47 183 273 Wait 17 | . 7 10 Move 331 | 36 126 169 Hop . | . . . Pick Up 30 | 5 8 17 Fast Attach 1 | 1 . . Attach 16 | 5 2 9 Detach 1 | . 1 . Swap 8 | . 4 4 Drop 11 | . 6 5 Fire 84 | . 29 55 Melee . | . . . Ram . | . . . Kick . | . . . Crush . | . . . Escape Stasis . | . . . Rewire . | . . . Trap . | . . . Miscellaneous 4 | . . 4 Route ------- -11/Scrapyard -10/Materials -9/Materials History --------- Turn | Location | Event 12 | -11/Scrapyard | Discovered new exit (range 16) 57 | -11/Scrapyard | Entered Materials 305 | -10/Materials | Build established: Mutant 477 | -10/Materials | Discovered new exit (range 16) 601 | -10/Materials | Entered another Materials area 601 | -9/Materials | Evolved 2 slots: Propulsion x1, Utility x1 1086 | -9/Materials | Core integrity fell below 50% 1103 | -9/Materials | Lost 7 parts (1p3n1u2w) 1352 | -9/Materials | Core integrity fell below 20% 1709 | -9/Materials | Lost 5 parts (2n1u2w) 1712 | -9/Materials | Destroyed self with Mini Grenade Launcher Last Messages --------------- 01693_ U-05 Engineer builds a Wall. 01693_ K-01 Serf collects debris. 01697_ U-05 Engineer lays Concrete. 01698_ K-01 Serf collects debris. 01700_ U-05 Engineer lays Concrete. 01701_ K-01 Serf collects debris. 01701_ U-05 Engineer lays Concrete. 01702_ K-01 Serf collects debris. 01703_ U-05 Engineer lays Concrete. 01703_ K-01 Serf collects debris. 01704_ U-05 Engineer lays Concrete. 01704_ K-01 Serf collects debris. 01705_ U-05 Engineer lays Concrete. 01706_ K-01 Serf collects debris. 01706_ U-05 Engineer lays Concrete. 01710_ K-01 Serf collects debris. 01711_ The unstable cave ceiling collapses. 01711_ U-05 Engineer lays Concrete. 01712_ Acquired 10 matter. 01712_ S-10 Pest destroyed. Map ----- +----------------------------------------------------+ | | | | | | | | | | | ?????????????????????????????????????????????????? | | ?????????????????????????????????????????????????? | | ?????????????????????????????????????????????????? | | ?????????????????????????????????????????????????? | | ?????????????????????????????????????????????????? | | ?????????????????????????????????????????????????? | | ???????????????????????????" ???????????? ???? | | ??????????????????????????? ?????????? #??? | | ??????????????????????????? ?????????# #??? | | ????????????????????????###+########### #??? | | ????????????????????????# # ## #??? | | ?????????????????######## # #? #??? | | ?????????????????? k + #? ???? | | ???????????????????# kk # ??? ???? | | ???????????????????# kk ???? #???? | | ????????????# ?????# k ?????# #???? | | ????????????# ??# +#??????# #???? | | ????????????# # o #?###### #???? | | ????????????# u #? # #???? | | ????????????# [% [ # # #???? | | ??????????????????# =%= =@[ %[# # #???? | | ??????????? *% ! [**+ # +???? | | ?????????? % # ## # # #?? | | ??????????? # # ##*######## # """ | | ??????????? ?###########=%%==!%[[ + """ | | ????????????######?????????????############# # """ | | ???????????????????????????????????????????# #?? | | ???????????????????????????????????????????# #???? | | ???????????????????????????????????????????# ##### | | ???????????????????????????????????????????# ##### | | ???????????????????????????????????????????# | | ???????????????????????????????????????????# %*[ | | ???????????????????????????????????????????# = | | ???????????????????????????????????????????# = | | ???????????????????????????????????????????#### | | ??????????????????????????????????????????????# | | ???????????????????????????????????????######## | | ???????????????????????????????????????# | = # | | ???????????????????????????????????????# # | | ???????????????????????????????????????# + | | ???????????????????????????????????????# = # ## | | ???????????????????????????????????????# == # #? | | ???????????????????????????????????????# # #? | | ???????????????????????????????????????######## #? | | ?????????????????????????????????????????????## ## | +----------------------------------------------------+ Best States ------------- Heat Dissipation 28 Energy Generation 14 Energy Capacity 280 Matter Stores 300 Matter Capacity 300 Sight Range 16 Robot Scan Range 14 Terrain Scan Density 10 Armor Coverage 150 Evasion (%) 50 Targeting Accuracy 5 Recoil Reduction 2 Item Schematics ----------------- None Robot Schematics ------------------ None Fabricated ------------ Nothing Repaired ---------- Nothing Studied --------- None Alien Tech Used ----------------- None Achievements -------------- Overwhelming Resistances Are Futile There's More Where That Came From Challenges ------------ None Game ------ Seed CoolantCentriumDerivative Manual? 0 Play Time 00:11:38 Cumulative 3.8 hours Start 2025.10.25 @ 22:28:06 End 2025.10.25 @ 22:38:40 Sessions 1 Manual Loads 0 Difficulty Rogue Special Mode None Game No. 18 Rogue 18 Adventurer 0 Explorer 0 Win Type - Total 0 Types 0/0/0/0/0/0/0/0/0/0 Lore% 4 Gallery% 9 Achievement% 8 Wizard Run 0 Options --------- Layout 1 ASCII 0 Keyboard 0 Movement Mouse Keybinds 0 Fullscreen 1 Font 24/Smallcaps Map View 50x35 Zoom Use 0% Tactical HUD 1 Map Filters NONE Filters NONE Steam 1 RUN: 173e2456-98d5-4683-bb07-667bba42a950